Cogmind - Beta 17 @@@ ROGUE MODE // 2026.08.07 @ 04:07:38 Player: Cereal Killer Result: Destroyed by S-10 Pest with Light Assault Rifle Performance ------------- Evolutions (1) 500 Regions Visited (4) 800 Robots Destroyed (25) 125 Value Destroyed (609) 609 Prototype IDs (0) 0 Alien Tech Used (0) 0 Bonus (-24) -24 TOTAL SCORE: 2010 Bonus ------- Friendly Fire -24 Cogmind --------- Core Integrity 0/400 Matter 150/300 Energy 100/100 System Corruption 0% Temperature Cool (0) Movement Core (50) Location -9/Mines Parts ------- > --- POWER (1) -------- (None) > --- PROPULSION (3) --- Wheel Wheel > --- UTILITY (3) ------ (None) > --- WEAPON (2) ------- (None) > --- INVENTORY (5) ---- Heat Sink Peak State ------------ > --- POWER ------------ Light Ion Engine > --- PROPULSION ------- Wheel Wheel Compact Wheel > --- UTILITY ---------- Small Storage Unit Tractor Beam > --- WEAPON ----------- Grenade Launcher Grenade Launcher > --- INVENTORY -------- Wheel Wheel Small Laser Light Assault Rifle Light Cannon [Rating: 8] Favorites ----------- Power Ion Engine Engine Ion Engine Propulsion Wheel Wheel Wheel Utility Small Storage Unit Device Tractor Beam Storage Small Storage Unit Weapon Light Cannon Energy Gun Medium Laser Ballistic Gun Light Assault Rifle Ballistic Cannon Light Cannon Launcher Grenade Launcher Build | -11 -10 -10 -9 -9 ------- Run | Yrd Mat Min Mat Min Slots Evolved 2 | . . . 2 . Power . | . . . . . Propulsion 1 | . . . 1 . Utility 1 | . . . 1 . Weapon . | . . . . . Parts Attached 19 | 5 3 1 10 . Power 2 | 1 . . 1 . Engine 2 | 1 . . 1 . Core . | . . . . . Reactor . | . . . . . Propulsion 8 | 2 1 . 5 . Treads . | . . . . . Leg . | . . . . . Wheel 8 | 2 1 . 5 . Hover . | . . . . . Flight . | . . . . . Utility 2 | . 1 . 1 . Device 1 | . . . 1 . Storage 1 | . 1 . . . Processor . | . . . . . Hackware . | . . . . . Protection . | . . . . . Artifact . | . . . . . Weapon 7 | 2 1 1 3 . Energy Gun 2 | 1 . . 1 . Energy Cannon . | . . . . . Ballistic Gun 2 | 1 . 1 . . Ballistic Cannon 1 | . 1 . . . Launcher 2 | . . . 2 . Special Weapon . | . . . . . Impact Weapon . | . . . . . Slashing Weapon . | . . . . . Piercing Weapon . | . . . . . Special Melee Weapon . | . . . . . Unidentified Prototypes . | . . . . . Parts Lost 15 | . 3 2 9 1 Power 1 | . . 1 . . Propulsion 6 | . 1 1 3 1 Utility 1 | . . . 1 . Weapon 7 | . 2 . 5 . Highest Loss Streak 6 | . 2 2 6 1 To Critical Strikes . | . . . . . Average Backups 3 | 1 3 4 4 1 Power . | . 1 1 . . Propulsion . | . . . 1 . Utility . | . . . . 1 Weapon 2 | . 1 3 1 . Tool/Special . | . . . . . Unused Backups 1 | . . . . 1 Power . | . . . . . Propulsion . | . . . . . Utility 1 | . . . . 1 Weapon . | . . . . . Tool/Special . | . . . . . Average Slot Usage (%) 65 | . 68 74 56 38 Engine 8 | . 14 11 . . Wheel 24 | . 23 25 23 30 Device 1 | . . . 4 . Storage 10 | . 3 14 11 8 Energy Gun 3 | . 14 . 1 . Ballistic Gun 6 | . 6 7 5 . Ballistic Cannon 8 | . 5 14 4 . Launcher 1 | . . . 5 . Peak Build Rating 8 | 5 6 6 8 4 Average Rating 4 | 3 4 5 5 3 On Entrance 3 | . 5 5 4 4 Avg Prop Armor Cover (%) 33 | . . . . 33 Naked Turns . | . . . . . Heaviest Build 15 | 8 15 14 15 5 Greatest Support 36 | 26 26 26 36 30 Greatest Overweight (x) . | . . . . . Average Overweight (x) . | . . . . . Largest Inventory Capacity 8 | 5 8 8 8 8 Average Capacity 7 | 5 5 8 8 7 Most Carried 7 | 3 5 5 7 1 Average Carried 3 | 2 3 4 3 1 Final Capacity 8 | 5 8 8 8 5 Final Carried 4 | 3 4 4 1 1 Class Distribution -------------------- 100% | Mutant Dominant Class ---------------- Mutant | -10/Materials Mutant | -10/Mines Mutant | -9/Materials Mutant | -9/Mines Resources | -11 -10 -10 -9 -9 ----------- Run | Yrd Mat Min Mat Min Matter Collected 499 | 193 97 25 184 . Remotely 184 | . . . 184 . Salvage Created 498 | . 103 32 363 . Parts 33 | . 9 . 24 . Haulers Intercepted . | . . . . . Recyclers Shooed . | . . . . . Parts Field Recycled . | . . . . . Retrieved Matter . | . . . . . Parts Self-Destructed . | . . . . . Prevented . | . . . . . Parts Restored . | . . . . . Kills | -11 -10 -10 -9 -9 ------- Run | Yrd Mat Min Mat Min Combat Hostiles Destroyed 20 | . 5 1 14 . Guns 9 | . 5 1 3 . Cannons 3 | . . . 3 . AOE 8 | . . . 8 . Classes Destroyed 6 | . 2 . 4 . Worker 1 | . 1 . . . Builder 2 | . . . 2 . Watcher 2 | . . . 2 . Swarmer 5 | . 5 . . . Grunt 13 | . . . 13 . Duelist 1 | . . . 1 . Best Kill Streak 18 | . 5 1 18 . Combat Bots Only 8 | . 5 1 8 . Max Kills in Single Turn 2 | . 1 1 2 . Gunslinging . | . . . . . Exploded 2 | . . . 2 . Melee . | . . . . . Uniques/NPCs Destroyed 1 | . . 1 . . YI-UF0 (-10/Mines) Combat | -11 -10 -10 -9 -9 -------- Run | Yrd Mat Min Mat Min Hostile Shots Fired 177 | . 59 8 90 20 Missed 47 | . 13 1 23 10 Hits 130 | . 46 7 67 10 Melee 1 | . . . 1 . Projectile 129 | . 46 7 66 10 AOE 7 | . . 7 . . Critical Strikes 3 | . . . 3 . Damage Taken 1632 | . 374 181 996 81 Core 600 | . 92 102 365 41 Absorbed by Shields . | . . . . . Core Remaining (%) 61 | 100 . 22 . . Volleys Fired 58 | . 17 5 36 . Largest 2 | . 2 2 2 . Hottest 80 | . 80 50 60 . Shots Fired 106 | . 31 10 65 . Gun 67 | . 29 5 33 . Cannon 20 | . 2 5 13 . Launcher 19 | . . . 19 . Special . | . . . . . Kinetic 59 | . 14 10 35 . Thermal 28 | . 17 . 11 . Explosive 19 | . . . 19 . Electromagnetic . | . . . . . Robot Hit Streak 14 | . 3 9 14 . Robot Miss Streak 4 | . 3 1 4 . Penetration Max . | . . . . . Secondary Targets 1 | . . . 1 . Max Gunslinging Chain 1 | . . . 1 . Shots Hit Robots 69 | . 15 9 45 . Core Hits 51 | . 7 4 40 . Critical Kills . | . . . . . Critical Parts Destroyed . | . . . . . Critical Strikes 1 | . . 1 . . Blast 1 | . . 1 . . Melee Attacks . | . . . . . Impact . | . . . . . Slashing . | . . . . . Piercing . | . . . . . Sneak Attacks . | . . . . . Combat Hostiles . | . . . . . Follow-up Attacks . | . . . . . Damage Inflicted 1918 | . 186 109 1623 . Guns 465 | . 186 39 240 . Cannons 213 | . . 70 143 . Explosions 1240 | . . . 1240 . Melee . | . . . . . Ramming . | . . . . . Kinetic 426 | . 48 109 269 . Thermal 252 | . 138 . 114 . Explosive 1240 | . . . 1240 . Electromagnetic . | . . . . . Impact . | . . . . . Slashing . | . . . . . Piercing . | . . . . . Highest Corruption . | . . . . . Average Corruption . | . . . . . Corruption Purged . | . . . . . Corruption Blocked . | . . . . . Overload Shots . | . . . . . Overflow Damage 45 | . . . 45 . Projectiles . | . . . . . Explosions 45 | . . . 45 . Melee . | . . . . . Knockbacks 6 | . . 2 4 . Impact . | . . . . . Kinetic 5 | . . 2 3 . Secondary 1 | . . . 1 . Self-Inflicted Damage 152 | . . . 152 . Shots 8 | . . . 8 . Rammed . | . . . . . Targets Rammed . | . . . . . Kicked . | . . . . . Crushed . | . . . . . Highest Temperature 170 | . 170 20 38 . Average Temperature 51 | . 82 10 14 . Received Heat Transfer 477 | . . . 477 . Siege Activations . | . . . . . Martial Activations . | . . . . . Shielding Activations . | . . . . . Robots Disrupted . | . . . . . Combat Hostiles . | . . . . . Robots Corrupted . | . . . . . Combat Hostiles . | . . . . . Parts Fried . | . . . . . Impact Corruptions . | . . . . . Robots Melted . | . . . . . Combat Hostiles . | . . . . . Parts Melted . | . . . . . Heat Transferred 657 | . 407 . 250 . Parts Sabotaged . | . . . . . Parts Stolen . | . . . . . Parts Stripped . | . . . . . Power Chain Reactions . | . . . . . Alert | -11 -10 -10 -9 -9 ------- Run | Yrd Mat Min Mat Min Maximum Alert Level 1 | . . . 1 . Low Security (%) 83 | 100 100 100 47 100 Level 1 16 | . . . 52 . Level 2 . | . . . . . Level 3 . | . . . . . Level 4 . | . . . . . Level 5 . | . . . . . High Security . | . . . . . Max Security . | . . . . . Peak Influence 298 | . 95 19 298 167 Initial 112 | . . 19 . 112 Average 66 | . 56 2 151 129 Influence Increases 673 | . 140 . 458 75 Destroy 0b10 Robot/C 380 | . 100 . 280 . Destroy 0b10 Robot/NC 25 | . 5 . 20 . Destroy Leader 74 | . 20 . 54 . Destroy Structure 59 | . . . 59 . Lose Combat Pursuer 135 | . 15 . 45 75 Influence Decreases 506 | . 90 50 170 196 Entered New Map 207 | . . 31 . 176 Time Decay 169 | . 60 19 80 10 Lost Part 130 | . 30 . 90 10 Squads Dispatched 2 | . . . 2 . Investigation . | . . . . . Extermination . | . . . . . Reinforcement 2 | . . . 2 . Assault . | . . . . . Garrison . | . . . . . Intercept . | . . . . . Searches Triggered . | . . . . . Construction Impeded 1 | . . . 1 . Haulers Reinforced . | . . . . . Active Scanning Responses . | . . . . . Cargo Convoy Interrupts . | . . . . . Stealth | -11 -10 -10 -9 -9 --------- Run | Yrd Mat Min Mat Min Distress Signals 5 | . 1 . 4 . Communications Jammed . | . . . . . Distress Signals . | . . . . . Times Spotted 44 | . 9 1 25 9 Peak Tracking Total 8 | . 8 1 8 8 Tactical Retreats 5 | . 1 . 2 2 Traps | -11 -10 -10 -9 -9 ------- Run | Yrd Mat Min Mat Min Traps Triggered . | . . . . . Indirectly . | . . . . . Trap Hack Attempts . | . . . . . Triggered . | . . . . . Disarmed . | . . . . . Reprogrammed . | . . . . . Reused . | . . . . . Traps Extracted . | . . . . . Installed . | . . . . . Triggered . | . . . . . Machines | -11 -10 -10 -9 -9 ---------- Run | Yrd Mat Min Mat Min Machines Disabled . | . . . . . Max in Single Turn . | . . . . . Machines Repaired . | . . . . . Machines Dismantled . | . . . . . Machines Sabotaged . | . . . . . Overloaded Fab Kills . | . . . . . Hacking | -11 -10 -10 -9 -9 --------- Run | Yrd Mat Min Mat Min Machines Accessed . | . . . . . Terminals . | . . . . . Fabricators . | . . . . . Repair Stations . | . . . . . Recycling Units . | . . . . . Scanalyzers . | . . . . . Garrison Access . | . . . . . Total Hacks . | . . . . . Successful . | . . . . . Failed . | . . . . . Catastrophic . | . . . . . Database Lockouts . | . . . . . Manual . | . . . . . Terminals . | . . . . . Fabricators . | . . . . . Repair Stations . | . . . . . Recycling Units . | . . . . . Scanalyzers . | . . . . . Garrison Access . | . . . . . Terminal Hacks . | . . . . . Fabricator Hacks . | . . . . . Repair Station Hacks . | . . . . . Recycling Unit Hacks . | . . . . . Scanalyzer . | . . . . . Garrison Access Hacks . | . . . . . Unauthorized Hacks . | . . . . . Terminals . | . . . . . Fabricators . | . . . . . Repair Stations . | . . . . . Recycling Units . | . . . . . Scanalyzers . | . . . . . Garrison Access . | . . . . . Data Cores Recovered . | . . . . . Used . | . . . . . Hacking Detections . | . . . . . Full Trace Events . | . . . . . Feedback Events . | . . . . . Feedback Blocked . | . . . . . Robot Schematics Acquired . | . . . . . Robots Built . | . . . . . Authchips . | . . . . . Time . | . . . . . Total Robot Build Rating . | . . . . . Part Schematics Acquired . | . . . . . Parts Built . | . . . . . Authchips . | . . . . . Time . | . . . . . Total Part Build Rating . | . . . . . Part Studies Acquired . | . . . . . Parts Repaired . | . . . . . Time . | . . . . . Parts Recycled . | . . . . . Recycled Matter . | . . . . . Retrieved Matter . | . . . . . Retrieved Components . | . . . . . Parts Scanalyzed . | . . . . . Part Schematics Acquired . | . . . . . Parts Damaged . | . . . . . Bothacking | -11 -10 -10 -9 -9 ------------ Run | Yrd Mat Min Mat Min Used RIF Installer . | . . . . . Robots Hacked . | . . . . . Non-combat . | . . . . . Combat . | . . . . . Robot Hacks Applied . | . . . . . Relay Couplers Released . | . . . . . Fabnet Peak Effective % . | . . . . . Robots Rewired . | . . . . . Allies Hacked . | . . . . . Hacks Repelled . | . . . . . Allies | -11 -10 -10 -9 -9 -------- Run | Yrd Mat Min Mat Min Total Allies . | . . . . . Largest Group . | . . . . . Highest-Rated Group . | . . . . . Highest-Rated Ally . | . . . . . Total Orders . | . . . . . Ally Attacks . | . . . . . Total Damage . | . . . . . Kills . | . . . . . Allies Corrupted . | . . . . . Allies Melted . | . . . . . Intel | -11 -10 -10 -9 -9 ------- Run | Yrd Mat Min Mat Min Active Infowar (turns) . | . . . . . Robot Analysis Total . | . . . . . Derelict Logs Recovered . | . . . . . Drone Launches . | . . . . . Drone Recoveries . | . . . . . Exploration | -11 -10 -10 -9 -9 ------------- Run | Yrd Mat Min Mat Min Turns Passed 715 | 48 144 261 225 37 Spaces Moved 537 | 42 97 229 119 50 Core 20 | 6 . . . 14 Treads . | . . . . . Legs . | . . . . . Wheels 517 | 36 97 229 119 36 Hover . | . . . . . Flight . | . . . . . Fastest Speed 50 | 50 90 90 80 50 Average Speed 87 | 84 92 91 85 71 Slowest Speed 100 | 90 100 100 100 80 Overloaded Moves . | . . . . . Propulsion Burnouts . | . . . . . Robots Hopped . | . . . . . Potential Cave-ins . | . . . . . Cave-ins Triggered . | . . . . . Exploration Rate (%) 23 | 4 31 40 16 27 Regions Visited 4 Branch Regions 2 Pre-discovered Areas . | . . . . . Known Exits Taken . | . . . . . Unknown Exits Taken 4 | 1 1 1 1 . Scrap Searched 1 | . . 1 . . Spaces Dug . | . . . . . Terrain Destroyed 91 | . . . 91 . Melee . | . . . . . Projectile . | . . . . . AOE 91 | . . . 91 . Terrain Rammed . | . . . . . Walls Destroyed . | . . . . . Machines Disabled . | . . . . . Actions | -11 -10 -10 -9 -9 --------- Run | Yrd Mat Min Mat Min Total 678 | 54 122 271 180 51 Wait 46 | . 3 36 7 . Move 533 | 41 96 228 118 50 Hop . | . . . . . Pick Up 19 | 8 3 1 7 . Fast Attach 1 | . 1 . . . Attach 18 | 5 2 1 10 . Detach . | . . . . . Swap 2 | . . . 2 . Drop 1 | . . . . 1 Fire 58 | . 17 5 36 . Melee . | . . . . . Ram . | . . . . . Kick . | . . . . . Crush . | . . . . . Escape Stasis . | . . . . . Rewire . | . . . . . Trap . | . . . . . Miscellaneous . | . . . . . Route ------- -11/Scrapyard -10/Materials -10/Mines -9/Materials -9/Mines History --------- Turn | Location | Event 14 | -11/Scrapyard | Discovered new exit (range 15) 49 | -11/Scrapyard | Entered Materials 186 | -10/Materials | Discovered new exit (range 8) 193 | -10/Materials | Entered Mines 257 | -10/Mines | YI-UF0 nonchalantly dropped a Grenade Launcher on the ground 307 | -10/Mines | Build established: Mutant 334 | -10/Mines | Discovered new exit (range 9) 409 | -10/Mines | Core integrity fell below 50% 414 | -10/Mines | Destroyed YI-UF0 454 | -10/Mines | Entered Materials 454 | -9/Materials | Evolved 2 slots: Propulsion x1, Utility x1 581 | -9/Materials | Destroyed 8 combat bots 602 | -9/Materials | Core integrity fell below 50% 605 | -9/Materials | Lost 3 parts (1n2w) 640 | -9/Materials | Core integrity fell below 20% 672 | -9/Materials | Discovered new exit (range 8) 676 | -9/Materials | Lost 6 parts (2n1u3w) 679 | -9/Materials | Entered Mines 716 | -9/Mines | Destroyed by S-10 Pest with Light Assault Rifle Last Messages --------------- 00649_ U-05 Engineer lays Concrete. 00658_ T-07 Excavator is excavating. 00667_ K-01 Serf collects debris. 00670_ U-05 Engineer lays Concrete. 00672_ EXIT=FOUND LOCATION=UNKNOWN GOAL=ESCAPE Something is scanning the area. 00680_ A derelict emerges from the shadows. 00681_ PB-D29(g): "Some of my friends down here think you need a mining laser when you travel the depths." 00682_ PB-D29(g): "You know what I say? NO!" 00683_ PB-D29(g): "Everyone knows a good old rocket launcher goes a long way." 00684_ PB-D29(g): "Need to get rid of a swarm? Done. Need a big hole in the wall? Done." 00685_ S-10 Pest suffers critical hit (Burn). 00708_ Dropped Sml. Storage Unit. 00709_ Wheel destroyed. Map ----- +----------------------------------------------------+ | ?????????????????????? #????????????????? | | ?????????????????????? #???????????????? | | ?????????????????????? ##?????????????? | | ?????????????????????? #?????????????? | | ??????????????????????? ?????????????? | | ??????????????????????? ?????????????? | | ?????????####?????????? ?????????????? | | ????????## ##?????????# #?????????????? | | ????????# #?????????# #??#####??????? | | ???????## #?????????# #?## ##?????? | | ???????# #?????????# #?# ##????# | | ??????## !#??????????# ### ###### | | ??????# ############ ## | | ??????# s # ### | | ??????## ## ######## #??#### ### | | ??????## ## #??????# ##?????# #?# | | ?????## ###s#??????# ##????## #?? | | ????## s### #??????# ###### ### | | ????# ss## ##?????## | | ????# s #??????## | | ????## s #???????## """" | | ?????# #????????# """" | | ?????## #????????# """" | | ??????##### ##???????## | | ??????????## ##???????###### # | | ???????????# @ #????????????## ## | | ???????????# #?????????????### ##? | | ???????????# ##???????????????# ##?? | | ???????????# ## ##????????????????# #??? | | ???????????# ## #?????????????????? #??? | | ???????????# ## ??????????????????##??? | | ???????????# ## #??????????????????????? | | ???????????# ?# #??????????????????????? | | ???????????# ?# #??????????????????????? | | ???????????# ?? #??????????????????????? | | ???????????# ??#???????????????????????? | | ????????????????????????????????????????? | | ????????????????????????????????????????? | | ????????????????????????????????????????? | | ????????????????????????????????????????? | | ????????????????????????????????????????? | | ????????????????????????????????????????? | | ????????????????????????????????????????? | | ????????????????????????????????????????? | | ????????????????????????????????????????? | | ????????????????????????????????????????? | | ????????????????????????????????????????? | | ????????????????????????????????????????? | | ????????????????????????????????????????? | | ????????????????????????????????????????? | +----------------------------------------------------+ Best States ------------- Heat Dissipation 28 Energy Generation 10 Energy Capacity 250 Matter Stores 300 Matter Capacity 300 Sight Range 16 Terrain Scan Density 10 Evasion (%) 50 Item Schematics ----------------- None Robot Schematics ------------------ None Fabricated ------------ Nothing Repaired ---------- Nothing Studied --------- None Alien Tech Used ----------------- None Achievements -------------- None Challenges ------------ None Game ------ Seed AntisysNullChainsword Manual? 0 Play Time 00:06:28 Cumulative 335.1 hours Start 2026.08.07 @ 04:01:35 End 2026.08.07 @ 04:07:38 Sessions 1 Manual Loads 0 Difficulty Rogue Special Mode None Game No. 258 Rogue 249 Adventurer 9 Explorer 0 Win Type - Total 4 Types 3/0/0/1/0/0/0/0/0/0 Lore% 87 Gallery% 72 Achievement% 51 Wizard Run 0 Options --------- Layout 1 ASCII 0 Keyboard 0 Movement Numpad Keybinds 0 Fullscreen 1 Font 24/Smallcaps Map View 50x35 Zoom Use 0% Tactical HUD 1 Map Filters NONE Filters NONE Steam 1 RUN: 563a34b5-1ce1-4e1e-b68e-6ac5db760ca9